bitfinex-derivatives/quotes_BTCF0:USTF0_20250827
["timestamp","ask_amount","ask_price","bid_price","bid_amount"]
[1756256488094,1.37308883,111410.0,111400.0,0.15686]
[1756256491891,0.54220883,111410.0,111400.0,0.15686]
[1756256492194,1.37300883,111410.0,111400.0,0.15686]
[1756256492797,0.54220883,111410.0,111400.0,0.15686]
[1756256493096,1.37292883,111410.0,111400.0,0.15686]
[1756256495706,0.54220883,111410.0,111400.0,0.15686]
[1756256495907,1.37284883,111410.0,111400.0,0.15686]
[1756256496106,0.54220883,111410.0,111400.0,0.15686]
[1756256496405,1.37280883,111410.0,111400.0,0.15686]
[1756256497004,1.37280883,111410.0,111400.0,0.51766]
[1756256497406,1.25985115,111410.0,111400.0,0.85716185]
[1756256498408,0.42925115,111410.0,111400.0,0.85716185]
[1756256498606,1.25977115,111410.0,111400.0,0.85716185]
[1756256501304,0.9202293,111410.0,111400.0,0.6074167]
[1756256501609,1.25969115,111410.0,111400.0,1.2864204]
[1756256503409,0.9201893,111410.0,111400.0,1.06000915]
[1756256507612,0.0897493,111410.0,111400.0,1.06000915]
[1756256507813,0.9200693,111410.0,111400.0,1.06000915]
[1756256512216,0.9200693,111410.0,111400.0,0.6074167]
[1756256513917,0.74192093,111410.0,111400.0,0.6074167]
[1756256514218,0.83167023,111410.0,111400.0,1.06000915]
[1756256516120,0.83167023,111410.0,111400.0,0.6084167]
[1756256516419,0.83167023,111410.0,111400.0,1.06100915]
[1756256516721,0.83167023,111410.0,111400.0,0.6084167]
[1756256516915,0.83167023,111410.0,111400.0,1.06100915]
[1756256517823,0.83167023,111410.0,111400.0,0.6084167]
[1756256518124,0.83167023,111410.0,111400.0,1.06100915]
[1756256519022,0.0897493,111410.0,111400.0,1.06100915]
[1756256519321,0.9195893,111410.0,111400.0,1.06100915]
[1756256524924,0.9195893,111410.0,111400.0,0.6084167]
[1756256525324,1.25905761,111410.0,111400.0,0.94788501]
[1756256525726,1.25905761,111410.0,111400.0,0.6084167]
[1756256526026,1.25905761,111410.0,111400.0,0.85812831]
[1756256526227,1.25905761,111410.0,111400.0,0.51866]
[1756256526428,0.42921761,111410.0,111400.0,0.85812831]
[1756256526726,0.42921761,111410.0,111400.0,0.51866]
[1756256526927,0.42921761,111410.0,111400.0,0.85812831]
[1756256528827,0.0897493,111410.0,111400.0,0.85812831]
[1756256529028,0.42921761,111410.0,111400.0,0.85812831]
[1756256531228,0.23138354,111410.0,111400.0,0.85812831]
[1756256531427,0.32113284,111410.0,111400.0,0.85812831]
[1756256533924,0.32113284,111410.0,111400.0,0.51866]
[1756256534131,0.32113284,111410.0,111400.0,0.85812831]
[1756256534828,0.32113284,111410.0,111400.0,0.51866]
[1756256535022,0.32113284,111410.0,111400.0,0.85812831]
[1756256538935,1.29151446,111410.0,111400.0,0.07268]
[1756256539132,1.29151446,111410.0,111400.0,0.05063]
[1756256539435,1.29151446,111410.0,111400.0,0.0304]
[1756256540231,1.29151446,111410.0,111400.0,0.0294]
[1756256540533,1.29251446,111410.0,111400.0,0.0294]
[1756256542827,0.72166261,111410.0,111400.0,0.0294]
[1756256543033,0.72166261,111410.0,111400.0,0.15451]
[1756256543232,1.06113092,111410.0,111400.0,0.15451]
[1756256543532,1.40059923,111410.0,111400.0,0.15451]
[1756256544722,0.72166261,111410.0,111400.0,0.15451]
[1756256544927,1.40059923,111410.0,111400.0,0.0891]
[1756256545127,1.40059923,111410.0,111400.0,0.12049]
[1756256545533,1.40059923,111410.0,111400.0,0.15451]
[1756256545831,1.40059923,111410.0,111400.0,0.0891]
[1756256546036,1.40059923,111410.0,111400.0,0.12049]
[1756256546634,1.40059923,111410.0,111400.0,0.15451]
[1756256547828,1.40059923,111410.0,111400.0,0.0891]
[1756256548033,1.40059923,111410.0,111400.0,0.0294]
[1756256548533,0.72166261,111410.0,111400.0,0.0294]
[1756256548736,1.40059923,111410.0,111400.0,0.0294]
[1756256555741,1.40059923,111410.0,111400.0,0.04964]
[1756256560839,1.40059923,111410.0,111400.0,0.0294]
[1756256561343,1.40059923,111410.0,111400.0,0.04955]
[1756256561538,1.40059923,111410.0,111400.0,0.0294]
[1756256565449,1.40059923,111410.0,111400.0,0.04955]
[1756256566647,1.15059923,111410.0,111400.0,0.0294]
[1756256566843,0.089765,111390.0,111380.0,0.1581]
[1756256567049,1.6176437,111390.0,111380.0,0.12425]
[1756256567249,1.6176437,111390.0,111380.0,0.1581]
[1756256567746,1.9784437,111390.0,111380.0,0.02922]
[1756256567949,1.9784437,111390.0,111380.0,0.03122]
[1756256568449,2.56791201,111390.0,111380.0,0.03122]
[1756256568651,0.1060611,111370.0,111360.0,0.48968]
[1756256568850,1.27412941,111370.0,111360.0,0.48968]
[1756256569149,2.77412941,111370.0,111360.0,0.48968]
[1756256569349,2.81947449,111370.0,111360.0,0.48968]
[1756256570052,1.99087449,111370.0,111360.0,0.49268]
[1756256570251,2.81947449,111370.0,111360.0,0.49268]
[1756256570452,2.81947449,111370.0,111360.0,0.92193741]
[1756256570652,2.81947449,111370.0,111360.0,1.47115741]
[1756256570840,2.81947449,111370.0,111360.0,0.6116891]
[1756256571150,2.89173806,111370.0,111360.0,1.47115741]
[1756256571350,2.89173806,111370.0,111360.0,0.6116891]
[1756256571551,2.06313806,111370.0,111360.0,0.95115741]
[1756256571850,2.89173806,111370.0,111360.0,0.95115741]
[1756256573154,2.55226975,111370.0,111360.0,0.5219]
[1756256573354,2.89173806,111370.0,111360.0,0.5219]
[1756256573548,2.89173806,111370.0,111360.0,0.86136831]
[1756256574252,2.89173806,111370.0,111360.0,0.95115741]
[1756256574548,2.89173806,111370.0,111360.0,0.6116891]
[1756256574753,2.55226975,111370.0,111360.0,0.6116891]
[1756256574949,2.89173806,111370.0,111360.0,0.95115741]
[1756256576153,2.89173806,111370.0,111360.0,0.6116891]
[1756256576350,2.89173806,111370.0,111360.0,0.95115741]
[1756256576552,2.89173806,111370.0,111360.0,0.6116891]
[1756256576751,0.99060467,111370.0,111360.0,1.68115741]
[1756256576951,1.33007298,111370.0,111360.0,1.68115741]
[1756256577455,1.33007298,111370.0,111360.0,1.72115741]
[1756256577652,0.50151298,111370.0,111360.0,1.72115741]
[1756256577953,1.33007298,111370.0,111360.0,1.72115741]
[1756256578349,1.33007298,111370.0,111360.0,1.20115741]
[1756256578545,1.33007298,111370.0,111360.0,1.66115741]
[1756256579054,0.50151298,111370.0,111360.0,1.66115741]
[1756256579255,1.33007298,111370.0,111360.0,1.66115741]
[1756256579857,1.33007298,111370.0,111360.0,0.8616891]
[1756256580061,1.33007298,111370.0,111360.0,1.64115741]
[1756256580356,1.33007298,111370.0,111360.0,1.20115741]
[1756256580558,1.33007298,111370.0,111360.0,1.62115741]
[1756256580756,1.33007298,111370.0,111360.0,1.68115741]
[1756256581254,1.33007298,111370.0,111360.0,1.69115741]
[1756256584056,1.33003298,111370.0,111360.0,1.67115741]
[1756256585159,1.33003298,111370.0,111360.0,1.76115741]
[1756256585958,1.33003298,111370.0,111360.0,1.51115741]
[1756256588062,1.34631298,111370.0,111360.0,1.54115741]
[1756256588261,1.34631298,111370.0,111360.0,1.04115741]
[1756256588461,1.34631298,111370.0,111360.0,1.48115741]
[1756256589464,1.34631298,111370.0,111360.0,0.7016891]
[1756256589662,1.34631298,111370.0,111360.0,1.04115741]
[1756256589960,1.34631298,111370.0,111360.0,1.51115741]
[1756256590362,1.34631298,111370.0,111360.0,0.7016891]
[1756256590558,1.35649298,111370.0,111360.0,0.7016891]
[1756256590757,1.34631298,111370.0,111360.0,0.7016891]
[1756256590963,1.34631298,111370.0,111360.0,1.04115741]
[1756256591360,1.00684467,111370.0,111360.0,0.95136831]
[1756256591557,1.35649298,111370.0,111360.0,1.04115741]
[1756256591964,1.35649298,111370.0,111360.0,0.7016891]
[1756256592166,1.35649298,111370.0,111360.0,1.04115741]
[1756256593968,1.34631298,111370.0,111360.0,1.04115741]
[1756256594269,1.34619298,111370.0,111360.0,1.04115741]
[1756256597978,1.00672467,111370.0,111360.0,1.04115741]
[1756256598375,1.34619298,111370.0,111360.0,1.04115741]
[1756256598575,1.34619298,111370.0,111360.0,1.55115741]
[1756256600378,1.34619298,111370.0,111360.0,0.7016891]
[1756256600579,1.34619298,111370.0,111360.0,1.54115741]
[1756256601681,0.51779298,111370.0,111360.0,1.54115741]
[1756256601978,1.34603298,111370.0,111360.0,1.54115741]
[1756256602475,1.34603298,111370.0,111360.0,1.2016891]
[1756256602674,1.34603298,111370.0,111360.0,1.55115741]
[1756256602876,1.34603298,111370.0,111360.0,1.04115741]
[1756256603073,0.07226357,111370.0,111360.0,1.62062572]
[1756256603272,0.42924941,111370.0,111360.0,1.53062572]
[1756256603482,0.44552941,111370.0,111360.0,2.01939741]
[1756256603683,0.44552941,111370.0,111360.0,1.6799291]
[1756256603885,0.44552941,111370.0,111360.0,2.01939741]
[1756256604077,0.51817366,111370.0,111360.0,2.01939741]
[1756256604577,0.51817366,111370.0,111360.0,1.6799291]
[1756256604774,0.52835366,111370.0,111360.0,0.54805]
[1756256604983,0.52835366,111370.0,111360.0,0.91938831]
[1756256605573,0.52835366,111370.0,111360.0,0.57992]
[1756256606275,0.52835366,111370.0,111360.0,0.6697091]
[1756256607282,0.52835366,111370.0,111360.0,0.51992]
[1756256609283,0.51817366,111370.0,111360.0,0.51992]
[1756256609677,0.51817366,111370.0,111360.0,0.6097091]
[1756256610782,0.17870535,111370.0,111360.0,0.6097091]
[1756256610983,0.51817366,111370.0,111360.0,0.6097091]
[1756256611183,0.52835366,111370.0,111360.0,0.51992]
[1756256611382,0.51817366,111370.0,111360.0,0.51992]
[1756256612282,0.17870535,111370.0,111360.0,0.51992]
[1756256612485,0.51817366,111370.0,111360.0,0.51992]
[1756256612784,0.51817366,111370.0,111360.0,0.15912]
[1756256612980,0.08892425,111370.0,111360.0,0.94917741]
[1756256613181,1.24023256,111370.0,111360.0,0.94917741]
[1756256613382,1.25651256,111370.0,111360.0,0.94917741]
[1756256613783,0.07264425,111370.0,111360.0,0.94917741]
[1756256613983,1.16758831,111370.0,111360.0,1.04917741]
[1756256614486,1.25736931,111370.0,111360.0,1.04917741]
[1756256617082,0.917901,111370.0,111360.0,1.04917741]
[1756256617281,0.33946831,111370.0,111360.0,1.04917741]
[1756256617484,1.16754831,111370.0,111360.0,1.04917741]
[1756256618287,1.25732931,111370.0,111360.0,1.04917741]
[1756256618588,1.33037566,111370.0,111360.0,1.04917741]
[1756256620188,1.24059466,111370.0,111360.0,1.38864572]
[1756256620689,1.24059466,111370.0,111360.0,0.7097091]
[1756256620884,1.24059466,111370.0,111360.0,1.38864572]
[1756256623991,1.24059466,111370.0,111360.0,2.21668572]
[1756256625088,1.24055466,111370.0,111360.0,2.21668572]
[1756256625287,1.33033576,111370.0,111360.0,2.21668572]
[1756256625695,1.34661576,111370.0,111360.0,0.7097091]
[1756256626289,1.35679576,111370.0,111360.0,0.25912]
[1756256626495,1.35679576,111370.0,111360.0,0.3489092]
[1756256626699,1.35679576,111370.0,111360.0,0.7097092]
[1756256627291,1.35679576,111370.0,111360.0,1.01730751]
[1756256627490,1.35679576,111370.0,111360.0,1.04881751]
[1756256628691,1.35679576,111370.0,111360.0,0.7093492]
[1756256629186,1.35679576,111370.0,111360.0,1.04881751]
[1756256630395,1.35679576,111370.0,111360.0,0.7093492]
[1756256632095,1.35679576,111370.0,111360.0,1.04881751]
[1756256632396,1.34661576,111370.0,111360.0,1.04881751]
[1756256634592,1.34661576,111370.0,111360.0,0.6778392]
[1756256634797,1.94626407,111370.0,111360.0,0.45526]
[1756256635200,1.94626407,111370.0,111360.0,0.43604]
[1756256635706,1.26732745,111370.0,111360.0,0.51725]
[1756256635901,1.60679576,111370.0,111360.0,0.48574]
[1756256636600,1.60679576,111370.0,111360.0,0.45496]
[1756256637999,1.94626407,111370.0,111360.0,0.43604]
[1756256638200,1.94626407,111370.0,111360.0,0.05237]
[1756256638201,2.30706407,111370.0,111360.0,0.05237]
[1756256638599,2.30706407,111370.0,111360.0,0.03222]
[1756256638802,2.30706407,111370.0,111360.0,0.003]
[1756256640404,0.1152491,111360.0,111350.0,0.49213]
[1756256640604,0.79418572,111360.0,111350.0,0.52105]
[1756256641304,0.56838272,111360.0,111350.0,0.52105]
[1756256641802,0.56838272,111360.0,111350.0,0.52305]
[1756256642497,0.56838272,111360.0,111350.0,0.49154]
[1756256642992,0.56838272,111360.0,111350.0,0.52305]
[1756256643896,0.56838272,111360.0,111350.0,0.05979]
[1756256644496,0.56838272,111360.0,111350.0,0.16225]
[1756256646005,0.9330691,111360.0,111350.0,0.16225]
[1756256646204,0.9330691,111360.0,111350.0,0.6128472]
[1756256646205,0.9340691,111360.0,111350.0,0.6128472]
[1756256647604,1.38720272,111360.0,111350.0,0.6128472]
[1756256648105,1.38720272,111360.0,111350.0,0.52305]
[1756256648499,1.39738272,111360.0,111350.0,0.52305]
[1756256650704,0.56938272,111360.0,111350.0,0.52305]
[1756256650903,1.39738272,111360.0,111350.0,0.52305]
[1756256651108,0.56938272,111360.0,111350.0,0.52305]
[1756256651307,1.39738272,111360.0,111350.0,0.52305]
[1756256653304,0.1162491,111360.0,111350.0,0.6128472]
[1756256653608,1.38720272,111360.0,111350.0,0.6128472]
[1756256654410,0.55920272,111360.0,111350.0,0.6128472]
[1756256654610,1.38720272,111360.0,111350.0,0.6128472]
[1756256656115,1.39738272,111360.0,111350.0,0.52305]
[1756256657317,0.9442491,111360.0,111350.0,0.52305]
[1756256657517,1.39738272,111360.0,111350.0,0.52305]
[1756256658606,1.39738272,111360.0,111350.0,0.16225]
[1756256658809,1.41703703,111360.0,111350.0,0.05979]
[1756256659318,1.41703703,111360.0,111350.0,0.14483]
[1756256660114,1.41703703,111360.0,111350.0,0.08283]
[1756256660617,1.41703703,111360.0,111350.0,0.07283]
[1756256661014,1.41703703,111360.0,111350.0,0.02991]
[1756256661317,1.41703703,111360.0,111350.0,0.04985]
[1756256661710,1.41703703,111360.0,111350.0,0.07289]
[1756256662015,1.39738272,111360.0,111350.0,0.13489]
[1756256663122,1.39738272,111360.0,111350.0,0.10175]
[1756256663718,1.39738272,111360.0,111350.0,0.07289]
[1756256663918,1.39738272,111360.0,111350.0,0.02991]
[1756256664918,1.39738272,111360.0,111350.0,0.13489]
[1756256665110,1.39738272,111360.0,111350.0,0.02991]
[1756256665307,0.102877,111350.0,111340.0,0.36093426]
[1756256665507,0.5841755,111350.0,111340.0,0.38876426]
[1756256666113,0.5841755,111350.0,111340.0,0.40870426]
[1756256666726,0.5841755,111350.0,111340.0,0.49574426]
[1756256666930,1.4129755,111350.0,111340.0,0.51429426]
[1756256667124,0.5759954,111350.0,111340.0,0.62409926]
[1756256667322,1.4048354,111350.0,111340.0,0.62409926]
[1756256667523,0.95170178,111350.0,111340.0,0.62409926]
[1756256667926,1.4048354,111350.0,111340.0,0.62409926]
[1756256668126,1.4048354,111350.0,111340.0,0.60409926]
[1756256668431,1.4048354,111350.0,111340.0,0.62409926]
[1756256669926,1.4130154,111350.0,111340.0,0.48115426]
[1756256670229,1.4130154,111350.0,111340.0,0.51429426]
[1756256670430,1.23806254,111350.0,111340.0,0.43374426]
[1756256670731,1.32785944,111350.0,111340.0,0.43374426]
[1756256670930,0.87472582,111350.0,111340.0,0.51429426]
[1756256671126,1.32785944,111350.0,111340.0,0.51429426]
[1756256672830,1.32785944,111350.0,111340.0,0.43374426]
[1756256673328,1.32785944,111350.0,111340.0,0.46260426]
[1756256673635,1.32785944,111350.0,111340.0,0.49574426]
[1756256674131,1.32785944,111350.0,111340.0,0.51429426]
[1756256674527,1.32785944,111350.0,111340.0,0.45229426]
[1756256675332,1.34774661,111350.0,111340.0,0.45229426]
[1756256675631,1.34774661,111350.0,111340.0,0.07294426]
[1756256677027,1.34774661,111350.0,111340.0,0.10359426]
[1756256677432,1.34774661,111350.0,111340.0,0.13837426]
[1756256678031,1.34774661,111350.0,111340.0,0.10359426]
[1756256678732,1.34774661,111350.0,111340.0,0.07294426]
[1756256679331,1.34774661,111350.0,111340.0,0.10359426]
[1756256679836,1.34774661,111350.0,111340.0,0.04990426]
[1756256683433,1.95854661,111350.0,111340.0,0.00213426]
[1756256684229,1.95854661,111350.0,111340.0,0.02928426]
[1756256685124,2.01651769,111350.0,111340.0,0.02928426]
[1756256686033,2.01651769,111350.0,111340.0,0.02728426]
[1756256686938,1.65571769,111350.0,111340.0,0.02728426]
[1756256687239,2.01651769,111350.0,111340.0,0.00013426]
[1756256688139,2.01651769,111350.0,111340.0,0.02728426]
[1756256688440,2.01651769,111350.0,111340.0,0.00013426]
[1756256688641,2.01651769,111350.0,111340.0,0.02728426]
[1756256689034,2.01675769,111350.0,111340.0,0.02728426]
[1756256690242,1.18179769,111350.0,111340.0,0.02728426]
[1756256690542,2.01619769,111350.0,111340.0,0.04655426]
[1756256690741,1.18179769,111350.0,111340.0,0.04655426]
[1756256690940,2.01619769,111350.0,111340.0,0.04655426]
[1756256691446,2.01619769,111350.0,111340.0,0.02728426]
[1756256693846,2.01583769,111350.0,111340.0,0.06799426]
[1756256694648,2.01583769,111350.0,111340.0,0.04655426]
[1756256694848,2.01583769,111350.0,111340.0,0.02728426]
[1756256697849,1.56270407,111350.0,111340.0,0.04655426]
[1756256698048,1.18179769,111350.0,111340.0,0.04655426]
[1756256698350,2.01811769,111350.0,111340.0,0.04655426]
[1756256700140,0.72866407,111350.0,111340.0,0.04655426]
[1756256700350,1.75997769,111350.0,111340.0,0.15292426]
[1756256701248,1.75997769,111350.0,111340.0,0.08749426]
[1756256701449,1.75997769,111350.0,111340.0,0.04655426]
[1756256702158,1.75997769,111350.0,111340.0,0.09864426]
[1756256703357,0.92361769,111350.0,111340.0,0.09864426]
[1756256703556,1.75949769,111350.0,111340.0,0.09864426]
[1756256703856,1.75949769,111350.0,111340.0,0.11814426]
[1756256704154,1.75949769,111350.0,111340.0,0.15292426]
[1756256704352,1.75929769,111350.0,111340.0,0.15292426]
[1756256704544,1.75925769,111350.0,111340.0,0.15292426]
[1756256705457,0.94532407,111350.0,111340.0,0.24272956]
[1756256705762,0.94532407,111350.0,111340.0,0.15292426]
[1756256705763,1.39845769,111350.0,111340.0,0.15292426]
[1756256706056,0.56281769,111350.0,111340.0,0.15292426]
[1756256706256,1.39821769,111350.0,111340.0,0.51372426]
[1756256706454,1.7972743,111360.0,111350.0,0.0578]
[1756256706658,3.08608792,111360.0,111350.0,0.51359]
[1756256707057,2.6328343,111360.0,111350.0,0.6033873]
[1756256707359,2.6328343,111360.0,111350.0,0.51359]
[1756256707360,3.08596792,111360.0,111350.0,0.51359]
[1756256707956,3.08796792,111360.0,111350.0,0.51359]
[1756256708356,0.54492792,111360.0,111350.0,0.51359]
[1756256708555,1.38052792,111360.0,111350.0,0.6033873]
[1756256708757,1.38052792,111360.0,111350.0,0.76359]
[1756256709056,0.9273943,111360.0,111350.0,0.8533873]
[1756256709256,0.002,111360.0,111350.0,1.30652092]
[1756256709457,0.83772,111360.0,111350.0,1.0633873]
[1756256709649,0.83772,111360.0,111350.0,1.51652092]
[1756256709854,0.0917892,111360.0,111350.0,1.51652092]
[1756256710056,0.9275092,111360.0,111350.0,1.51652092]
[1756256710259,0.9275092,111360.0,111350.0,1.0633873]
[1756256710452,0.9275092,111360.0,111350.0,1.51652092]
[1756256710852,0.002,111360.0,111350.0,1.51652092]
[1756256711060,0.8388,111360.0,111350.0,1.51652092]
[1756256712364,0.83876,111360.0,111350.0,1.51652092]
[1756256712667,0.002,111360.0,111350.0,1.51652092]
[1756256714267,0.07304635,111370.0,111360.0,0.2441493]
[1756256714469,2.38062452,111380.0,111370.0,0.1515112]
[1756256714663,2.38062452,111380.0,111370.0,1.24807482]
[1756256714664,2.3362,111380.0,111370.0,1.24807482]
[1756256714865,2.33799,111380.0,111370.0,0.7949412]
[1756256715065,2.34086,111380.0,111370.0,0.7949412]
[1756256716767,0.84086,111380.0,111370.0,0.7949412]
[1756256716968,0.00566,111380.0,111370.0,0.7949412]
[1756256717267,0.84178,111380.0,111370.0,0.7949412]
[1756256717768,0.84178,111380.0,111370.0,1.24807482]
[1756256718567,0.84178,111380.0,111370.0,0.7949412]
[1756256718870,0.9315529,111380.0,111370.0,1.24807482]
[1756256719470,1.00329289,111380.0,111370.0,0.7949412]
[1756256719670,1.00329289,111380.0,111370.0,1.24807482]
[1756256720268,1.45642651,111380.0,111370.0,0.6049412]
[1756256721467,1.45642651,111380.0,111370.0,0.6249412]
[1756256724767,1.45642651,111380.0,111370.0,0.6049412]
[1756256724971,1.45642651,111380.0,111370.0,0.48141]
[1756256725173,1.45642651,111380.0,111370.0,0.51516]
[1756256725673,1.45642651,111380.0,111370.0,0.604941]
[1756256727273,1.45642651,111380.0,111370.0,0.51516]
[1756256728172,1.45642651,111380.0,111370.0,0.6049409]
[1756256732775,1.45446651,111380.0,111370.0,0.6049409]
[1756256733878,1.45446651,111380.0,111370.0,0.51516]
[1756256736978,1.00133289,111380.0,111370.0,0.51516]
[1756256737178,1.45446651,111380.0,111370.0,0.51516]
[1756256740879,1.45446651,111380.0,111360.0,0.4505881]
[1756256740880,0.0897811,111370.0,111360.0,0.4505881]
[1756256741084,0.54757472,111370.0,111360.0,0.51502]
[1756256742185,0.54757472,111370.0,111360.0,0.51602]
[1756256746087,0.54757472,111370.0,111360.0,0.48103]
[1756256746287,0.54757472,111370.0,111360.0,0.51602]
[1756256746989,1.37921472,111370.0,111360.0,0.51602]
[1756256748290,0.9260811,111370.0,111360.0,0.51602]
[1756256748491,1.37921472,111370.0,111360.0,0.51602]
[1756256750391,0.9260811,111370.0,111360.0,0.51602]
[1756256750596,1.37921472,111370.0,111360.0,0.51602]
[1756256752801,0.0926511,111370.0,111360.0,0.605809]
[1756256753008,0.9200211,111370.0,111360.0,1.08894262]
[1756256753505,0.83024,111370.0,111360.0,1.08894262]
[1756256753806,0.9200209,111370.0,111360.0,1.08894262]
[1756256754406,0.9218109,111370.0,111360.0,1.08894262]
[1756256754606,0.9246809,111370.0,111360.0,0.635809]
[1756256754802,1.37781452,111370.0,111360.0,0.54602]
[1756256755106,1.37781452,111370.0,111360.0,0.51103]
[1756256755305,1.37781452,111370.0,111360.0,0.54602]
[1756256755506,1.37781452,111370.0,111360.0,0.51103]
[1756256755803,1.18675743,111370.0,111360.0,0.48074]
[1756256757207,1.18675743,111370.0,111360.0,0.44036]
[1756256757505,1.18675743,111370.0,111360.0,0.54602]
[1756256757906,1.43675743,111370.0,111360.0,0.03089]
[1756256758412,1.43675743,111370.0,111360.0,0.001]
[1756256758602,1.79755743,111370.0,111360.0,0.001]
[1756256761214,1.79755743,111370.0,111360.0,0.03089]
[1756256761605,0.094449,111360.0,111350.0,0.04856]
[1756256761805,0.90838262,111360.0,111350.0,0.10091]
[1756256762705,0.90838262,111360.0,111350.0,0.04856]
[1756256763014,0.90838262,111360.0,111350.0,0.10191]
[1756256763607,0.90838262,111360.0,111350.0,0.07162]
[1756256763810,0.90838262,111360.0,111350.0,0.10191]
[1756256764104,0.90838262,111360.0,111350.0,0.1369]
[1756256764509,0.54758262,111360.0,111350.0,0.1369]
[1756256764711,0.54758262,111360.0,111350.0,0.51602]
[1756256764906,0.54758262,111360.0,111350.0,0.51502]
[1756256765112,0.926249,111360.0,111350.0,0.51502]
[1756256765410,1.37938262,111360.0,111350.0,0.51502]
[1756256765612,1.37926262,111360.0,111350.0,0.51502]
[1756256765811,0.54858262,111360.0,111350.0,0.51502]
[1756256766011,1.37950262,111360.0,111350.0,0.51502]
[1756256766714,0.54858262,111360.0,111350.0,0.51502]
[1756256767014,1.37946262,111360.0,111350.0,0.51502]
[1756256767615,0.0936589,111360.0,111350.0,0.634817]
[1756256767804,1.37747252,111360.0,111350.0,0.884817]
[1756256768007,0.45879362,111360.0,111350.0,0.884817]
[1756256768207,0.83335,111360.0,111350.0,1.33795062]
[1756256768514,0.001,111360.0,111350.0,1.33795062]
[1756256769306,0.001,111360.0,111350.0,1.65795062]
[1756256769712,0.092579,111360.0,111350.0,0.854817]
[1756256769907,0.095449,111360.0,111350.0,0.854817]
[1756256770413,0.54858262,111360.0,111350.0,0.51502]
[1756256772113,0.54858262,111360.0,111350.0,0.15422]
[1756256774616,0.54858262,111360.0,111350.0,0.11923]
[1756256774822,1.37970262,111360.0,111350.0,0.15347]
[1756256777419,1.37962262,111360.0,111350.0,0.15347]
[1756256781726,0.926489,111360.0,111350.0,0.15347]
[1756256782023,1.37926262,111360.0,111350.0,0.15347]
[1756256782224,1.37930262,111360.0,111350.0,0.6040671]
[1756256782624,1.37930262,111360.0,111350.0,0.51427]
[1756256782925,0.54858262,111360.0,111350.0,0.6040671]
[1756256783126,1.37982262,111360.0,111350.0,0.6040671]
[1756256784127,1.37982262,111360.0,111350.0,0.51427]
[1756256788329,1.37982262,111360.0,111350.0,0.6040671]
[1756256792730,0.54858262,111360.0,111350.0,0.6040671]
[1756256792932,0.095449,111360.0,111350.0,1.07720072]
[1756256793228,0.001,111360.0,111350.0,1.32720072]
[1756256796230,0.001,111360.0,111350.0,1.62720072]
[1756256801139,0.001,111360.0,111350.0,1.1740671]
[1756256801343,0.001,111360.0,111350.0,1.62720072]
[1756256802339,0.07173999,111380.0,111370.0,0.2393609]
[1756256802537,1.64887364,111390.0,111380.0,0.2393529]
[1756256802730,1.64887364,111390.0,111380.0,0.6001529]
[1756256803131,2.10200726,111390.0,111380.0,0.6001529]
[1756256803336,2.93280726,111390.0,111380.0,0.6001529]
[1756256803539,2.10200726,111390.0,111380.0,0.6001529]
[1756256803839,2.93268726,111390.0,111380.0,0.6001529]
[1756256804042,2.48355364,111390.0,111380.0,0.51038]
[1756256804240,2.93668726,111390.0,111380.0,0.51038]
[1756256804441,2.93268726,111390.0,111380.0,0.51038]
[1756256804641,2.48055364,111390.0,111380.0,0.51038]
[1756256804842,2.93368726,111390.0,111380.0,0.51038]
[1756256805743,3.00712978,111390.0,111380.0,0.51038]
[1756256806441,2.17644978,111390.0,111380.0,0.51038]
[1756256806642,3.00724978,111390.0,111380.0,0.51038]
[1756256807143,2.98694198,111390.0,111380.0,0.51038]
[1756256809849,2.98694198,111390.0,111380.0,0.6001529]
[1756256810543,2.53380836,111390.0,111380.0,0.6001529]
[1756256810744,2.98694198,111390.0,111380.0,0.6001529]
[1756256812846,1.70324836,111390.0,111380.0,0.5682229]
[1756256813046,2.98658198,111390.0,111380.0,0.6001529]
[1756256814945,2.98658198,111390.0,111380.0,0.51038]
[1756256815243,2.98658198,111390.0,111380.0,0.40799]
[1756256815638,2.98658198,111390.0,111380.0,0.3887]
[1756256815843,2.98658198,111390.0,111380.0,0.40799]
[1756256817448,2.15638198,111390.0,111380.0,0.40799]
[1756256817648,2.98958198,111390.0,111380.0,0.40799]
[1756256818347,0.0942429,111380.0,111370.0,0.3887]
[1756256818546,0.089781,111370.0,111360.0,0.40799]
[1756256818737,1.38293462,111370.0,111360.0,0.3887]
[1756256819353,1.40296388,111370.0,111360.0,0.3887]
[1756256819648,1.40296388,111370.0,111360.0,0.3897]
[1756256820247,2.01376388,111370.0,111360.0,0.001]
[1756256822951,2.01376388,111370.0,111360.0,0.0289]
[1756256823151,0.72787026,111370.0,111360.0,0.15058]
[1756256823351,1.56691026,111370.0,111360.0,0.15058]
[1756256823553,2.02004388,111370.0,111360.0,0.15058]
[1756256823757,2.01988388,111370.0,111360.0,0.14958]
[1756256823957,1.40916388,111370.0,111360.0,0.51038]
[1756256824557,0.57020388,111370.0,111360.0,0.51038]
[1756256824758,0.57020388,111370.0,111360.0,0.6001685]
[1756256824759,0.86608926,111370.0,111360.0,0.6001685]
[1756256825059,1.31922288,111370.0,111360.0,0.6201685]
[1756256825261,0.86325926,111370.0,111360.0,1.07330212]
[1756256825766,0.86325926,111370.0,111360.0,1.32330212]
[1756256825956,0.86325926,111370.0,111360.0,1.07330212]
[1756256827264,0.86325926,111370.0,111360.0,1.32330212]
[1756256827265,0.02449926,111370.0,111360.0,1.32330212]
[1756256827563,0.85866926,111370.0,111360.0,1.32330212]
[1756256828364,0.02002926,111370.0,111360.0,1.32330212]
[1756256828563,0.85846926,111370.0,111360.0,1.32330212]
[1756256828764,0.02002926,111370.0,111360.0,1.32330212]
[1756256828965,0.02002926,111370.0,111360.0,1.49330212]
[1756256830762,0.10980996,111370.0,111360.0,1.0401685]
[1756256830969,0.10980996,111370.0,111360.0,1.49330212]
[1756256831174,0.10980996,111370.0,111360.0,1.0401685]
[1756256831365,0.10980996,111370.0,111360.0,1.49330212]
[1756256831883,0.10980996,111370.0,111360.0,0.8501685]
[1756256832171,0.10980996,111370.0,111360.0,0.8501688]
[1756256832370,0.10980996,111370.0,111360.0,0.76038]
[1756256832671,0.10980996,111370.0,111360.0,0.8501688]
[1756256832874,0.10980996,111370.0,111360.0,0.8701688]
[1756256833073,0.10980996,111370.0,111360.0,0.8501688]
[1756256833573,0.56294358,111370.0,111360.0,0.51038]
[1756256834271,0.10980996,111370.0,111360.0,0.51038]
[1756256834472,0.56294358,111370.0,111360.0,0.6001688]
[1756256834974,0.10980996,111370.0,111360.0,0.6201688]
[1756256835169,0.10980996,111370.0,111360.0,1.07330242]
[1756256835369,0.02002926,111370.0,111360.0,0.6201688]
[1756256835570,0.02002926,111370.0,111360.0,1.07330242]
[1756256835871,0.02102926,111370.0,111360.0,1.07330242]